[Event "87th Tata Steel Challengers 2025"]
[Site "Wijk aan Zee"]
[Date "2025.02.01"]
[Round "12.1"]
[White "Yakubboev, Nodirbek"]
[Black "Pijpers, Arthur"]
[Result "1-0"]
[Annotator "ChessBase"]
[ECO "D94"]
[WhiteElo "2659"]
[BlackElo "2474"]
[PlyCount "71"]
[EventDate "2025.01.13"]
[EventType "tourn"]
[EventCountry "NED"]
[SourceTitle "playchess.com"]
[Source "ChessBase"]
[SourceQuality "1"]
[TimeControl "40/6000+30:20/3000+30:900+30"]

1. Nf3 {[%emt 0:02:19]} Nf6 {[%emt 0:00:04]} 2. c4 {[%emt 0:00:06]} c5 {[%emt 0:00:04]} 3. Nc3 {[%emt 0:00:18]} d5 {[%emt 0:00:13]} 4. cxd5 {[%emt 0:01:15]} Nxd5 {[%emt 0:00:06]} 5. d4 {[%emt 0:00:08]} Nxc3 {[%emt 0:02:11]} 6. bxc3 {[%emt 0:00:01]} g6 {[%emt 0:00:07]} 7. e3 {[%emt 0:02:32]} Bg7 {[%emt 0:00:38]} 8. Bc4 {[%emt 0:00:16]} O-O {[%emt 0:02:15]} 9. O-O {[%emt 0:00:07]} Qc7 {[%emt 0:04:12]} 10. Bd3 {[%emt 0:10:26]} Rd8 {[%emt 0:14:34]} 11. Ba3 {[%emt 0:02:58]} b6 {[%emt 0:16:26]} 12. Qe2 {[%emt 0:01:38]} Nc6 {[%emt 0:04:15]} 13. Rac1 {[%emt 0:09:07]} Bb7 {[%emt 0:21:48]} 14. Rfd1 {[%emt 0:20:05]} e6 {[%emt 0:00:05]} 15. h4 {[%emt 0:12:32]} Qe7 {[%emt 0:05:48]} 16. e4 {[%emt 0:02:01]} Qf6 {[%emt 0:02:01]} 17. Bb2 {[%emt 0:09:39]} Qf4 {[%emt 0:01:26]} 18. g3 {[%emt 0:01:14]} Qg4 {[%emt 0:08:05]} 19. Qe3 {[%emt 0:00:51]} cxd4 {[%emt 0:03:38]} 20. cxd4 {[%emt 0:00:36]} Rac8 {[%emt 0:03:17]} 21. Be2 {[%emt 0:03:30]} Qh5 {[%emt 0:01:46]} 22. Ng5 {[%emt 0:01:41]} Qh6 {[%emt 0:00:06]} 23. Qf4 {[%emt 0:12:32]} Rf8 {[%emt 0:02:38]} 24. Ba1 {[%emt 0:04:13]} a6 {[%emt 0:09:58]} 25. d5 {[%emt 0:02:57]} e5 {[%emt 0:00:03]} 26. Qe3 {[%emt 0:00:22]} Nd4 {[%emt 0:00:04]} 27. Bxd4 {[%emt 0:00:42]} exd4 {[%emt 0:00:06]} 28. Qb3 {[%emt 0:00:05]} Rxc1 {[%emt 0:01:14]} 29. Rxc1 {[%emt 0:00:09]} Bf6 {[%emt 0:05:49]} 30. Rc7 {[%emt 0:00:51]} Bc8 {[%emt 0:00:43]} 31. Nxf7 {[%emt 0:01:11]} Qd2 {[%emt 0:00:11]} 32. d6 {[%emt 0:00:12]} Qe1+ {[%emt 0:01:11]} 33. Bf1 {[%emt 0:00:09]} Bg7 {[%emt 0:00:37]} 34. Nh6+ {[%emt 0:00:34]} Kh8 {[%emt 0:00:05]} 35. Qg8+ {[%emt 0:00:08]} Rxg8 {[%emt 0:00:03]} 36. Nf7# {[%emt 0:00:06]} 1-0

[Event "87th Tata Steel Challengers 2025"]
[Site "Wijk aan Zee"]
[Date "2025.02.01"]
[Round "12.2"]
[White "Suleymanli, Aydin"]
[Black "Svane, Frederik"]
[Result "1-0"]
[Annotator "TA"]
[ECO "D35"]
[WhiteElo "2623"]
[BlackElo "2664"]
[PlyCount "167"]
[EventDate "2025.01.13"]
[EventType "tourn"]
[EventCountry "NED"]
[SourceTitle "playchess.com"]
[Source "ChessBase"]
[SourceQuality "1"]
[TimeControl "40/6000+30:20/3000+30:900+30"]

{[%evp 15,167,13,16,5,11,12,29,17,22,16,20,15,14,20,23,15,23,0,0,0,0,0,0,0,0,0,0,-13,0,-18,-15,7,6,0,0,0,19,12,12,6,29,16,22,27,27,27,52,51,60,58,76,62,86,76,64,35,35,29,33,39,50,43,83,82,87,87,111,104,104,104,133,83,94,86,162,160,165,165,220,158,164,167,261,155,162,160,145,156,163,160,180,174,174,162,166,156,145,88,219,143,149,-658,220,218,218,217,206,213,218,211,217,224,211,210,242,250,253,241,241,242,262,264,473,466,535,488,481,419,1143,1145,362,1058,1161,1174,1170,1096,764,952,1133,1054,1066,745,893,629,1685,4095,4681,4627,4133,3685,1503,1336,1048,975]} 1. d4 {[%emt 0:00:05]} Nf6 {[%emt 0:00:26]} 2. c4 {[%emt 0:00:18]} e6 {[%emt 0:00:06]} 3. Nc3 {[%emt 0:00:05]} d5 {[%emt 0:00:06]} 4. cxd5 {[%emt 0:00:16]} exd5 {[%emt 0:00:06]} 5. Bg5 {[%emt 0:00:03]} Be7 {[%emt 0:00:15]} 6. e3 {[%emt 0:00:06]} O-O {[%emt 0:00:10]} 7. Bd3 {[%emt 0:00:13]} h6 {[%emt 0:00:10]} 8. Bh4 {[%emt 0:00:28]} c6 {[%emt 0:00:11]} 9. Nge2 {[%emt 0:00:59] 9.Bg3 is the modern continuation. D35: Queen's Gambit Declined: Exchange Variation.} Re8 {[%emt 0:00:36]} 10. O-O {[%emt 0:01:25]} a5 {[%emt 0:01:05]} 11. Qc2 {[%emt 0:01:44] White has an edge.} Nbd7 {[%emt 0:00:11]} 12. Bg3 {[%emt 0:04:58][%cal Oc3b5]} Bf8 {[%emt 0:15:58]} 13. h3 {[%emt 0:02:43]} b5 {[%emt 0:06:28]} 14. Rac1 {[%emt 0:08:21]} Ba6 {[%emt 0:05:19]} 15. Rfd1 {[%emt 0:09:59]} Qb6 {[%emt 0:14:26]} 16. e4 $146 {[%emt 0:09:04]} (16. Bf4 b4 17. Na4 Bxd3 18. Qxd3 Qb7 19. Rc2 Rac8 20. Rdc1 Ne4 21. Bh2 g6 22. Qd1 {1-0 Nikolaou,S (2180)-Malataras,G (1976) Aegean op 46th 2023 (5)}) 16... b4 {[%emt 0:07:20] aiming for ...Bxd3.} 17. Na4 {[%emt 0:00:39][%csl LRb6,LRc6]} Bxd3 $1 {[%emt 0:00:10]} 18. Rxd3 {[%emt 0:01:20]} Qb5 {[%emt 0:00:06]} 19. e5 {[%emt 0:01:52]} Ne4 {[%emt 0:02:18]} 20. Qd1 {[%emt 0:04:30]} Rac8 {[%emt 0:06:22]} 21. b3 {[%emt 0:03:34]} Qb7 {[%emt 0:10:54]} 22. Bf4 {[%emt 0:11:04]} c5 {[%emt 0:02:43]} 23. f3 {[%emt 0:04:51]} Ng5 {[%emt 0:03:54]} 24. dxc5 {[%emt 0:01:36]} Nxc5 {[%emt 0:00:18]} 25. Rxd5 {[%emt 0:03:35]} Nge6 {[%emt 0:00:06]} 26. Nxc5 {[%emt 0:07:30]} Bxc5+ {[%emt 0:03:16]} 27. Kh1 {[%emt 0:00:35]} Qa8 {[%emt 0:02:25]} 28. Rc2 {[%emt 0:04:12]} a4 {[%emt 0:01:45]} 29. Bg3 {[%emt 0:03:13]} axb3 {[%emt 0:04:14]} 30. axb3 {[%emt 0:00:06]} Qa3 {[%emt 0:02:40]} 31. Qb1 {[%emt 0:02:02]} Qa8 {[%emt 0:02:34]} 32. Rd1 {[%emt 0:02:19]} Rcd8 {[%emt 0:01:07]} 33. Nf4 {[%emt 0:04:47]} Rxd1+ {[%emt 0:00:52]} 34. Qxd1 {[%emt 0:00:05]} Rd8 {[%emt 0:00:19]} 35. Qb1 {[%emt 0:04:20] And now Nxe6 would win.} Nxf4 {[%emt 0:01:28]} 36. Bxf4 {[%emt 0:00:55]} (36. Rxc5 {is more complex.} Nxh3 37. e6 fxe6 38. Rc7) 36... Bd4 {[%emt 0:02:30]} 37. Ra2 {[%emt 0:03:43]} Qc8 {[%emt 0:00:47]} 38. Rd2 {[%emt 0:02:22]} Bc3 {[%emt 0:00:39]} 39. Rd6 {[%emt 0:03:39]} Re8 {[%emt 0:03:56]} 40. Qd3 {[%emt 0:01:27]} Qa8 {[%emt 0:09:32]} 41. Kh2 {[%emt 0:52:35] White is more active.} Qa5 {[%emt 0:06:30]} 42. Rd5 {[%emt 0:00:00]} Qa1 {[%emt 0:11:45]} 43. Qc4 {[%emt 0:00:00]} (43. Bg3 $142) 43... Qb1 $16 {[%emt 0:04:42]} 44. Rd3 {[%emt 0:00:00]} Qc2 {[%emt 0:04:12] [#]} (44... Be1 $16) 45. Bg3 $1 $18 {[%emt 0:00:00][%cal Bf4g3,Bg3h4,Bh4f2,Bf2c5][%mdl 32]} Qb1 {[%emt 0:10:39]} 46. f4 {[%emt 0:00:00]} Ra8 {[%emt 0:01:37]} (46... Bb2 $142 47. Bf2 Bc3) 47. Bh4 {[%emt 0:00:00]} Re8 {[%emt 0:08:32]} 48. Bf2 {[%emt 0:00:00]} Ra8 {[%emt 0:01:20]} (48... Rf8 $142 49. Be3 Ra8) 49. Qd5 {[%emt 0:00:00]} (49. Qe4 $18 Re8 50. Qc6) 49... Re8 $16 {[%emt 0:02:03]} 50. Bc5 {[%emt 0:00:00]} Qc1 {[%emt 0:02:15]} 51. Be3 {[%emt 0:00:00]} Qb1 {[%emt 0:00:36]} 52. Qc4 {[%emt 0:00:00]} Ra8 {[%emt 0:00:34]} 53. e6 {[%emt 0:03:22]} fxe6 {[%emt 0:00:07]} 54. Qxe6+ {[%emt 0:00:46]} Kh8 {[%emt 0:00:01]} 55. Qd5 {[%emt 0:01:33]} Rf8 {[%emt 0:01:13]} 56. Qd6 {[%emt 0:01:58]} (56. Qc4 $142) 56... Kg8 {[%emt 0:02:03]} (56... Rf6 $16 {keeps fighting.} 57. Qd5 Kh7) 57. Qe6+ {[%emt 0:00:25]} Kh8 {[%emt 0:00:01] [#]} 58. Bd4 $2 {[%emt 0:00:30][%mdl 8192]} Kh7 $4 {[%emt 0:02:13][%mdl 8192]} (58... Qxd3 $19 {avoids the disaster.} 59. Qxh6+ Qh7) 59. Qe7 $18 {[%emt 0:02:55][%csl Gd4][%cal Re7g7]} Rg8 {[%emt 0:00:01]} 60. Qe4+ {[%emt 0:00:13]} Kh8 {[%emt 0:00:00] [#]} 61. Qd5 $1 $40 {[%emt 0:15:42][%mdl 128] Black is in trouble.} Qb2 {[%emt 0:16:54]} (61... Qc1 62. Qd6) 62. Qc4 {[%emt 0:00:48]} Bxd4 {[%emt 0:00:18]} 63. Qxd4 {[%emt 0:00:18][%mdl 4096] Endgame KQR-KQR. White is a pawn up.} Qe2 {[%emt 0:00:54]} 64. Re3 {[%emt 0:00:48] Dodges Re8} Qf2 {[%emt 0:00:40]} 65. Re4 $1 {[%emt 0:00:04]} Qxd4 {[%emt 0:00:30]} 66. Rxd4 {[%emt 0:00:02] KR-KR. White is a pawn up.} Rb8 {[%emt 0:00:07]} 67. f5 {[%emt 0:00:42]} Rb5 {[%emt 0:00:53]} 68. g4 {[%emt 0:00:14]} h5 $2 {[%emt 0:00:06]} (68... Kg8 69. h4 h5) 69. Kg3 {[%emt 0:00:29]} (69. gxh5 Rxf5 70. Rxb4 Rxh5 $14) 69... hxg4 {[%emt 0:00:01]} 70. hxg4 {[%emt 0:00:10]} Kg8 {[%emt 0:01:23]} 71. Kf4 {[%emt 0:00:23]} g6 {[%emt 0:00:29]} (71... Rb8 $142 72. Rd6 Kf8) 72. fxg6 {[%emt 0:00:46]} Kg7 {[%emt 0:00:04]} 73. Ke3 {[%emt 0:00:26]} (73. Rd6 Rb8 74. Ke4 Re8+ 75. Kd4 Rc8 $16) 73... Kxg6 {[%emt 0:00:43] White is clearly winning.} 74. Kd3 {[%emt 0:00:12]} Kg5 {[%emt 0:00:17]} 75. Kc4 {[%emt 0:00:13]} Rb8 {[%emt 0:00:04]} 76. Kc5 {[%emt 0:00:10]} Kf6 {[%emt 0:00:29]} 77. Rxb4 {[%emt 0:00:41]} Rc8+ {[%emt 0:00:01]} 78. Kd4 {[%emt 0:00:34]} Rd8+ {[%emt 0:00:08]} 79. Ke3 {[%emt 0:00:39]} Rh8 {[%emt 0:00:32]} 80. Kf4 {[%emt 0:00:33]} Rh3 {[%emt 0:00:02]} 81. Rb6+ {[%emt 0:00:37]} Kf7 {[%emt 0:00:01]} 82. b4 {[%emt 0:00:19]} Rc3 {[%emt 0:00:02]} 83. g5 {[%emt 0:00:51]} Rc1 {[%emt 0:00:27]} 84. Ke5 {[%emt 0:00:30] Weighted Error Value: White=0.22 (precise) /Black=0.22 (precise)   Loses game:     	White=1     	---        Missed win:     	---       	Black=1      Mistake:       	White=3     	Black=6      Inaccurate:     	White=2     	Black=1      OK:         	White=30    	Black=25     Best:        	White=6     	Black=4      Strong:       	White=2     	Black=1} 1-0

[Event "87th Tata Steel Challengers 2025"]
[Site "Wijk aan Zee"]
[Date "2025.02.01"]
[Round "12.3"]
[White "Oro, Faustino"]
[Black "Lu, Miaoyi"]
[Result "1-0"]
[Annotator "TA"]
[ECO "C78"]
[WhiteElo "2447"]
[BlackElo "2429"]
[PlyCount "91"]
[EventDate "2025.01.13"]
[EventType "tourn"]
[EventCountry "NED"]
[SourceTitle "playchess.com"]
[Source "ChessBase"]
[SourceQuality "1"]
[TimeControl "40/6000+30:20/3000+30:900+30"]

{[%evp 20,91,10,5,18,11,15,0,0,0,0,-10,0,-22,-1,0,0,-29,-26,-25,-31,-14,0,0,0,7,68,52,49,42,81,36,37,0,0,0,27,0,144,74,152,168,183,156,174,139,198,183,220,177,188,170,177,168,122,73,172,158,352,340,637,626,760,790,897,731,740,744,872,871,1096,1082,1049,1046]} 1. e4 {[%emt 0:00:02]} e5 {[%emt 0:00:21]} 2. Nf3 {[%emt 0:00:05]} Nc6 {[%emt 0:00:04]} 3. Bb5 {[%emt 0:00:03][%cal Bf1b5,Bb5a4,Ba4b3][%mdl 32]} a6 {[%emt 0:03:50]} 4. Ba4 {[%emt 0:01:44]} Nf6 {[%emt 0:00:03]} 5. O-O {[%emt 0:00:41]} Bc5 {[%emt 0:00:07]} 6. c3 {[%emt 0:02:35]} b5 {[%emt 0:00:05]} 7. Bb3 {[%emt 0:01:56]} d6 {[%emt 0:00:04]} 8. d3 {[%emt 0:00:22]} h6 {[%emt 0:02:33]} 9. Re1 {[%emt 0:01:37]} O-O {[%emt 0:00:05]} 10. h3 {[%emt 0:00:48]} Re8 {[%emt 0:02:00]} 11. Nbd2 {[%emt 0:00:50]} Bb6 {[%emt 0:04:55] C78: Ruy Lopez: Archangelsk and Möller Defences.} 12. Nf1 {[%emt 0:03:30]} Be6 {[%emt 0:00:23]} 13. Bxe6 {[%emt 0:07:01]} Rxe6 {[%emt 0:00:24] The position is equal.} 14. Ng3 {[%emt 0:00:13]} d5 {[%emt 0:01:00]} 15. Qe2 {[%emt 0:01:41]} Qd7 {[%emt 0:12:23]} 16. Nh4 $146 {[%emt 0:12:43]} (16. Be3 Bxe3 17. Qxe3 Rd8 18. a4 b4 19. Qc5 bxc3 20. bxc3 Qe7 21. Qxe7 Nxe7 22. exd5 Nexd5 {½-½ Urazayev,A (2472)-Cheparinov,I (2663) Wch Blitz Samarkand 2023 (16)}) 16... Bc5 {[%emt 0:09:48]} (16... Kh7 {seems wilder.} 17. Nhf5 Rd8 18. Be3 Bxe3 19. Qxe3 Ne7) 17. Nhf5 {[%emt 0:08:50]} Bf8 {[%emt 0:00:23]} 18. h4 {[%emt 0:13:16]} Rd8 {[%emt 0:13:22]} 19. Be3 $1 {[%emt 0:03:51]} d4 {[%emt 0:16:31]} 20. cxd4 {[%emt 0:00:54]} exd4 {[%emt 0:01:13]} 21. Bd2 {[%emt 0:03:23]} Nb4 {[%emt 0:11:02]} 22. Rec1 {[%emt 0:01:48] Wards off Nc2} c5 {[%emt 0:02:21]} (22... a5 $1 $11) 23. Bxb4 $14 {[%emt 0:01:30]} cxb4 {[%emt 0:00:02]} 24. h5 {[%emt 0:00:08] White has a king side majority. Strong Square White (f5)} a5 {[%emt 0:03:19]} 25. Qc2 {[%emt 0:03:00]} g6 {[%emt 0:05:13]} 26. hxg6 {[%emt 0:01:02]} fxg6 {[%emt 0:00:01]} 27. Nh4 {[%emt 0:00:15] Excellent horsemanship.} Ng4 {[%emt 0:00:25]} 28. Nf3 {[%emt 0:02:09]} Bg7 {[%emt 0:05:26]} (28... Bd6 $11 {remains equal.}) 29. Ne2 {[%emt 0:02:35]} ({White should try} 29. Qc7) 29... Rf8 {[%emt 0:06:08]} ({Black should try} 29... Ne5) 30. Qc7 $36 {[%emt 0:01:21][%mdl 2048] White is really pushing.} Re7 {[%emt 0:04:55]} 31. Qxd7 {[%emt 0:01:13]} (31. Qxa5 Ref7 $11) 31... Rxd7 {[%emt 0:00:02]} 32. Rc5 {[%emt 0:00:11]} Rdf7 {[%emt 0:02:51]} (32... Rb7 $16 33. Rac1 (33. Nexd4 Nxf2 34. Ne6 Nxd3 $17) 33... a4) 33. Rac1 $18 {[%emt 0:01:59][%cal Ba1c1,Bc1c6,Bc6g6][%mdl 32]} (33. Nexd4 Bxd4 34. Nxd4 Rxf2 $19 (34... Nxf2 35. Rxb5 Nxd3 36. Rxa5 $11)) 33... h5 {[%emt 0:04:28]} 34. Rc8 {[%emt 0:02:31]} (34. Nfxd4 Rxf2 (34... Nxf2 $2 35. Rd5 $19) 35. g3 Ne3 36. Rxb5 Rg2+ 37. Kh1 Rff2 $19) (34. Nexd4 Bxd4 (34... Nxf2 35. Rc8 $17) 35. Nxd4 Rxf2 $15) 34... h4 {[%emt 0:00:55][%cal Oh4h3]} 35. R1c6 {[%emt 0:01:39]} (35. Nxh4 Rxf2 (35... Nxf2 $2 36. Nxg6 Rxc8 37. Rxc8+ Kh7 38. Ngf4 $18) 36. Nxg6 Rxc8 (36... Rxe2 $2 37. Nxf8 Bh6 38. Nd7+ Kg7 39. R8c2 $18) 37. Rxc8+ Kf7 $19) 35... h3 {[%emt 0:00:36]} 36. Rxf8+ {[%emt 0:01:40]} (36. Nexd4 $6 Bxd4 37. Nxd4 h2+ 38. Kh1 Nxf2+ 39. Kxh2 Rxc8 40. Rxc8+ Kg7 $14) (36. gxh3 Rxf3 37. hxg4 Rxd3 $11) 36... Rxf8 {[%emt 0:00:02]} 37. Nexd4 {[%emt 0:06:38]} (37. Nfxd4 $2 h2+ (37... Rxf2 $2 38. gxh3 Bxd4 39. Nxd4 $18) (37... Nxf2 38. Rxg6 Nxd3 39. Rg3 $16) 38. Kh1 Rxf2 $19) (37. gxh3 Rxf3 38. hxg4 Rxd3 $17) (37. Rxg6 $142 h2+ 38. Nxh2 Nxf2 39. b3 (39. Nxd4 Nxd3 40. Rg3 Nc1 $16)) 37... h2+ {[%emt 0:00:25]} 38. Nxh2 {[%emt 0:00:06]} Nxh2 $2 {[%emt 0:01:06] [#] Black cannot hold the game after this.} (38... Nxf2 $2 39. Ne6 (39. Nxb5 Nxd3 40. Rxg6 Nxb2 $14) 39... Nxd3 40. Nxf8 Kxf8 41. Rc8+ (41. Rxg6 Bxb2 42. Rg5 Bc3 $16) 41... Kf7 42. Rc7+ Kg8 43. b3 $18) (38... Ne5 $16) 39. Rxg6 {[%emt 0:00:33]} ({Not} 39. Ne6 Rf6 $16) 39... Rf7 {[%emt 0:00:33]} (39... b3 40. axb3 (40. Kxh2 $2 bxa2 41. Nf5 Rxf5 $19) 40... Rf6) 40. Nf5 {[%emt 0:00:18] White is clearly winning.} (40. Kxh2 Kh7 (40... Rxf2 $2 {is the wrong capture.} 41. Nf5 $18) 41. Rxg7+ Kxg7 $16) 40... Kf8 {[%emt 0:00:31]} 41. Nxg7 {[%emt 0:51:10]} a4 {[%emt 0:03:16]} 42. Ne6+ {[%emt 0:00:00]} Ke8 {[%emt 0:01:43]} 43. Nd4 {[%emt 0:00:00]} Rd7 {[%emt 0:01:49]} 44. Nxb5 {[%emt 0:00:00]} Kf7 {[%emt 0:02:52]} 45. Rd6 {[%emt 0:00:00]} Rb7 {[%emt 0:00:11]} 46. Rd5 {[%emt 0:00:00] Weighted Error Value: White=0.14 (very precise) /Black=0.60  Loses game:     	---       	Black=1      Mistake:       	White=2     	Black=6      Inaccurate:     	White=3     	Black=2      OK:         	White=12    	Black=6      Best:        	White=5     	Black=1      Strong:       	White=1     	---} 1-0

[Event "87th Tata Steel Challengers 2025"]
[Site "Wijk aan Zee"]
[Date "2025.02.01"]
[Round "12.4"]
[White "L'Ami, Erwin"]
[Black "Nogerbek, Kazybek"]
[Result "1/2-1/2"]
[Annotator "TA"]
[ECO "C45"]
[WhiteElo "2614"]
[BlackElo "2514"]
[PlyCount "120"]
[EventDate "2025.01.13"]
[EventType "tourn"]
[EventCountry "NED"]
[SourceTitle "playchess.com"]
[Source "ChessBase"]
[SourceQuality "1"]
[TimeControl "40/6000+30:20/3000+30:900+30"]

{[%evp 11,120,14,11,7,2,0,0,0,0,0,-14,-42,-45,-42,-43,-43,-39,-46,-51,-44,-34,-62,-47,-48,-50,-52,-44,-41,-31,-48,-41,-45,-47,-56,-53,-51,-62,-64,-52,-57,-57,-56,-58,-61,-60,-54,-20,-20,-20,-31,-11,-26,-20,-36,-11,-15,0,0,0,0,0,0,0,0,0,0,0,-68,-68,-540,-445,-510,-430,-363,-72,-733,0,0,0,0,0,0,0,0,0,0,0,0,0,0,0,0,0,0,0,0,0,0,0,0,0,0,0,0,0,0,0,0,0,0,0]} 1. e4 {[%emt 0:00:05]} e5 {[%emt 0:01:07]} 2. Nf3 {[%emt 0:00:08]} Nc6 {[%emt 0:00:10]} 3. d4 {[%emt 0:00:09]} exd4 {[%emt 0:00:08]} 4. Nxd4 {[%emt 0:00:07]} Bc5 {[%emt 0:00:16]} 5. Nxc6 {[%emt 0:00:42]} Qf6 {[%emt 0:00:23]} 6. Qf3 {[%emt 0:00:20]} dxc6 {[%emt 0:00:12] 6...Qxf3 is the modern continuation.} 7. Nc3 {[%emt 0:02:49] C45: Scotch Game.} Qe7 {[%emt 0:04:17]} 8. Bd3 {[%emt 0:12:01]} Nf6 {[%emt 0:03:06]} 9. Be3 {[%emt 0:08:12]} Be6 $146 {[%emt 0:07:11]} (9... Ng4 10. Bxc5 Qxc5 11. Qg3 Be6 12. f4 O-O-O 13. f5 Bxf5 14. exf5 Ne3 15. Kd2 Nc4+ {1-0 Jones,G (2660)-McShane,L (2644) GBR-ch playoff 104th 2017 (2.1)}) 10. Bxc5 {[%emt 0:10:50]} Qxc5 {[%emt 0:00:30]} 11. O-O {[%emt 0:01:37]} O-O-O {[%emt 0:03:13]} 12. Rfe1 {[%emt 0:05:46]} Ng4 {[%emt 0:05:02]} 13. h3 {[%emt 0:06:56]} Ne5 {[%emt 0:02:57]} 14. Qe3 {[%emt 0:00:09]} Qxe3 {[%emt 0:02:24]} 15. Rxe3 {[%emt 0:00:25]} g5 {[%emt 0:01:48]} 16. Be2 {[%emt 0:15:14]} Rd2 {[%emt 0:11:58]} 17. Rc1 {[%emt 0:00:43]} Rhd8 {[%emt 0:00:29] Strong Rooks Black (d2+d8)} 18. b3 {[%emt 0:03:19]} c5 {[%emt 0:08:11]} 19. Kf1 {[%emt 0:05:37]} c6 {[%emt 0:03:28]} 20. Ke1 {[%emt 0:02:30][%cal Oh3h4]} f6 {[%emt 0:05:17]} 21. Rd1 {[%emt 0:03:02]} R2d4 {[%emt 0:01:32]} (21... Rxc2 22. Rxd8+ Kxd8 23. Kd1 $16) 22. Nb1 {[%emt 0:03:46]} Kc7 {[%emt 0:02:19]} 23. Rd2 {[%emt 0:05:21]} a5 {[%emt 0:06:25]} 24. Kd1 {[%emt 0:02:32]} b5 {[%emt 0:03:44]} 25. Kc1 {[%emt 0:01:38]} a4 {[%emt 0:05:00]} 26. c3 {[%emt 0:03:36]} Rxd2 {[%emt 0:01:51]} 27. Nxd2 {[%emt 0:00:07]} a3 {[%emt 0:00:17]} 28. c4 {[%emt 0:07:06]} b4 {[%emt 0:05:49]} 29. Nf3 {[%emt 0:01:44]} Kd6 {[%emt 0:01:06]} 30. Ne1 {[%emt 0:02:56]} Rh8 {[%emt 0:03:04]} 31. Bf1 {[%emt 0:02:40]} h5 {[%emt 0:03:27]} 32. g3 {[%emt 0:02:01]} Ng6 {[%emt 0:00:30]} 33. Nd3 {[%emt 0:00:37]} g4 {[%emt 0:10:57]} (33... h4 {seems wilder.} 34. f4 hxg3 35. f5 Nh4) 34. h4 {[%emt 0:00:22]} Ne5 {[%emt 0:00:50]} 35. Nxe5 {[%emt 0:01:13]} Kxe5 $11 {[%emt 0:00:59][%mdl 4096] Endgame KRB-KRB} 36. Rd3 $1 {[%emt 0:00:51] Repels Rd8} Rh7 {[%emt 0:03:16][%cal Oh7d7]} (36... Kxe4 $2 37. Re3+ Kd4 38. Rxe6 $18) 37. Kd2 {[%emt 0:00:43]} Rf7 {[%emt 0:02:22]} (37... Kxe4 $2 38. Re3+ Kd4 39. Bd3 $18 (39. Rxe6 f5 $18)) 38. Bg2 {[%emt 0:00:45]} Rb7 {[%emt 0:02:05][%cal Oe6c4] [#]} 39. Kc1 {[%emt 0:00:41]} (39. Ke2 $11) 39... Rd7 $1 $15 {[%emt 0:00:48]} 40. Rxd7 {[%emt 0:00:28][%mdl 8192]} ({White should try} 40. Kc2 $15) 40... Bxd7 {[%emt 0:00:01] KB-KB} 41. Kd2 {[%emt 0:22:35]} Kd4 {[%emt 0:01:48]} 42. Bf1 {[%emt 0:03:27]} Be8 $2 {[%emt 0:06:54]} (42... Kxe4 $19 {is more deadly. White must now prevent ...Kf3.} 43. Bd3+ Kf3) 43. e5 $2 {[%emt 0:02:43][%mdl 8192]} Kxe5 $2 {[%emt 0:07:46]} ({Black should try} 43... fxe5 $19 44. Bd3 Bf7) 44. Bd3 $11 {[%emt 0:01:09] The position is equal.} Kd4 {[%emt 0:02:16]} 45. Bc2 {[%emt 0:01:58]} Bf7 {[%emt 0:00:39]} 46. Bd3 {[%emt 0:00:43]} Be6 {[%emt 0:07:15]} 47. Kc2 {[%emt 0:00:39]} Ke5 {[%emt 0:04:47]} (47... f5 $5) 48. Kd2 {[%emt 0:05:39]} Bf5 {[%emt 0:07:13]} 49. Bxf5 {[%emt 0:01:29]} Kxf5 {[%emt 0:00:12] KP-KP. Black is a pawn up.} 50. Ke3 {[%emt 0:00:10]} Ke5 {[%emt 0:00:08]} 51. f4+ {[%emt 0:00:48]} gxf3 {[%emt 0:04:13]} (51... Kf5 $5) 52. Kxf3 {[%emt 0:00:06] [#]} Kf5 {[%emt 0:01:39]} ({Not} 52... Kd4 $2 53. g4 Kc3 (53... hxg4+ $2 54. Kxg4 Kc3 55. h5 $18) 54. g5 $18) (52... f5 $5) 53. g4+ $1 {[%emt 0:00:54]} hxg4+ {[%emt 0:00:06]} 54. Kg3 {[%emt 0:00:04]} Ke4 {[%emt 0:00:36] ( -> ...f5)} 55. Kxg4 {[%emt 0:00:32]} f5+ {[%emt 0:00:07]} 56. Kg3 $1 {[%emt 0:00:24]} Ke3 {[%emt 0:00:06]} 57. Kg2 $1 {[%emt 0:00:58]} Ke2 {[%emt 0:00:23] ( -> ...f4)} (57... Kf4 $5 58. Kh3 $8 Ke3 $11) 58. Kg3 {[%emt 0:00:06] White threatens Kf4 and mate.} Ke3 {[%emt 0:00:04] ( -> ...f4+)} 59. Kg2 $1 {[%emt 0:00:06]} Kf4 {[%emt 0:01:45] ( -> ...Kg4)} (59... Ke2 $5 60. Kg3 $8 Ke3 $11) 60. Kh3 {[%emt 0:00:20]} Ke3 $1 {[%emt 0:00:06] Weighted Error Value: White=0.29 (precise) /Black=0.24 (precise)   Loses game:     	White=2     	---        Missed win:     	---       	Black=2      Mistake:       	White=1     	---        Inaccurate:     	White=2     	Black=1      OK:         	White=27    	Black=19     Best:        	White=3     	Black=3      Strong:       	White=5     	Black=2} 1/2-1/2